bitfinex/quotes_SOLUSD_20250422
["timestamp","ask_amount","ask_price","bid_price","bid_amount"]
[1745327479670,26.63148727,142.04,141.96,133.86808727]
[1745327479865,8.62031068,142.05,141.99,26.63148727]
[1745327480083,26.63148727,142.03,141.98,26.63148727]
[1745327480497,8.62031068,142.05,141.98,26.63148727]
[1745327480809,26.63148727,142.04,141.99,26.63148727]
[1745327481870,8.62021014,142.05,141.99,26.63148727]
[1745327482183,1.5804,142.05,141.96,107.2366]
[1745327482380,26.63148727,142.04,141.99,26.63148727]
[1745327482582,26.63148727,142.02,141.96,107.2366]
[1745327482784,26.63148727,142.02,141.97,26.63148727]
[1745327482991,26.63148727,142.03,141.98,26.63148727]
[1745327483182,26.63148727,142.04,141.99,26.63148727]
[1745327483791,26.63148727,142.03,141.96,107.2366]
[1745327483996,26.63148727,142.02,141.96,107.2366]
[1745327484291,33.67246358,142.03,141.98,26.63148727]
[1745327484694,26.63148727,142.03,141.98,26.63148727]
[1745327484874,26.63148727,142.02,141.96,81.2366]
[1745327485069,26.63148727,142.02,141.97,26.63148727]
[1745327485374,7.04046231,142.04,141.96,81.2366]
[1745327485375,26.63148727,142.0,141.96,81.2366]
[1745327485697,26.63148727,142.01,141.96,107.86808727]
[1745327486081,26.63148727,142.0,141.96,81.2366]
[1745327486385,26.63148727,141.99,141.94,26.63148727]
[1745327487202,26.63148727,141.99,141.93,97.7966]
[1745327487408,26.63148727,141.98,141.93,124.42808727]
[1745327488086,43.29406513,142.02,141.94,26.63148727]
[1745327488279,26.63148727,141.99,141.94,26.63148727]
[1745327488479,26.63148727,141.99,141.93,97.7966]
[1745327488690,26.63148727,141.99,141.94,26.63148727]
[1745327489705,26.63148727,142.01,141.96,26.63148727]
[1745327490209,26.63148727,142.0,141.95,26.63148727]
[1745327490577,33.67385841,142.0,141.93,97.7966]
[1745327490852,33.67385841,142.0,141.95,26.63148727]
[1745327491005,26.63148727,142.0,141.95,26.63148727]
[1745327491219,33.67376099,142.0,141.95,26.63148727]
[1745327491500,16.65082175,142.0,141.95,16.65082175]
[1745327492304,7.04195188,142.01,141.93,114.44742175]
[1745327492305,16.65082175,141.98,141.93,114.44742175]
[1745327492509,7.04305919,141.99,141.93,114.44742175]
[1745327492697,16.65082175,141.98,141.93,97.7966]
[1745327492883,16.65082175,141.97,141.93,114.44742175]
[1745327493079,16.65082175,141.98,141.93,114.44742175]
[1745327493293,16.65082175,141.96,141.93,81.2366]
[1745327493809,16.65082175,141.97,141.93,81.2366]
[1745327494191,16.65082175,141.96,141.93,81.2366]
[1745327495887,23.69479405,141.97,141.93,81.2366]
[1745327496393,16.65082175,141.96,141.93,81.2366]
[1745327497709,23.69509546,141.96,141.93,81.2366]
[1745327498095,16.65082175,141.96,141.93,81.2366]
[1745327498880,16.65082175,141.94,141.9,81.2996]
[1745327499082,16.65082175,141.91,141.9,81.2996]
[1745327499389,16.65082175,141.95,141.9,16.71382175]
[1745327499903,16.65082175,141.94,141.9,16.71382175]
[1745327500281,16.65082175,141.94,141.9,0.063]
[1745327500800,23.69654851,141.93,141.9,0.063]
[1745327502411,7.04473406,141.95,141.9,0.063]
[1745327502712,23.69675965,141.93,141.9,0.063]
[1745327503987,16.65082175,141.93,141.9,0.063]
[1745327504691,7.04374163,141.97,141.91,16.65082175]
[1745327504888,16.65082175,141.95,141.91,16.65082175]
[1745327505093,7.04374163,141.97,141.91,16.65082175]
[1745327505612,16.65082175,141.94,141.9,0.063]
[1745327505838,16.65082175,141.93,141.9,0.063]
[1745327506018,16.65082175,141.91,141.9,0.063]
[1745327506313,16.65082175,141.94,141.9,16.71382175]
[1745327506505,24.65309571,141.97,141.91,16.65082175]
[1745327506893,16.65082175,141.96,141.91,16.65082175]
[1745327507084,16.65082175,141.95,141.91,16.65082175]
[1745327507295,16.65082175,141.95,141.9,16.71382175]
[1745327507492,16.65082175,141.93,141.9,0.063]
[1745327508096,16.65082175,141.92,141.9,0.063]
[1745327508800,23.69711432,141.92,141.9,0.063]
[1745327509817,7.04596244,141.93,141.9,0.063]
[1745327510023,7.04540877,141.94,141.9,0.063]
[1745327510228,7.04374163,141.97,141.91,16.65082175]
[1745327510404,16.65082175,141.96,141.91,16.65082175]
[1745327510604,7.04374163,141.97,141.91,16.65082175]
[1745327510605,16.65082175,141.95,141.91,16.65082175]
[1745327510812,16.65082175,141.96,141.91,16.65082175]
[1745327511023,23.69515708,141.96,141.91,16.65082175]
[1745327511323,16.65082175,141.96,141.91,16.65082175]
[1745327511517,23.69511249,141.96,141.91,16.65082175]
[1745327511699,1.5677,141.98,141.92,16.65082175]
[1745327511897,16.65082175,141.97,141.93,16.65082175]
[1745327512318,16.65082175,141.96,141.91,97.88742175]
[1745327512632,16.65082175,141.96,141.92,16.65082175]
[1745327512942,1.5677,142.03,141.95,42.65082175]
[1745327513226,16.65082175,142.05,142.01,16.65082175]
[1745327513416,16.68082175,142.06,142.02,16.65082175]
[1745327513622,16.65082175,142.05,142.01,16.65082175]
[1745327514830,0.03,142.06,142.03,16.65082175]
[1745327515130,0.03,142.06,142.04,16.65082175]
[1745327515333,0.03,142.06,142.02,16.65082175]
[1745327515498,0.03,142.06,142.0,103.6048]
[1745327515701,16.68082175,142.06,142.0,103.6048]
[1745327515923,16.68082175,142.06,142.02,16.65082175]
[1745327516624,16.65082175,142.05,142.0,113.88742175]
[1745327516816,16.68082175,142.06,142.01,16.65082175]
[1745327517221,16.68082175,142.06,142.0,97.2366]
[1745327517424,16.65082175,142.05,142.0,113.88742175]
[1745327518139,16.65082175,142.03,141.97,87.6048]
[1745327518306,7.06938895,142.06,141.99,16.65082175]
[1745327518307,16.65082175,142.04,141.99,16.65082175]
[1745327518625,16.65082175,142.05,142.0,16.65082175]
[1745327518830,16.65082175,142.04,142.0,16.65082175]
[1745327519229,16.65082175,142.05,142.0,16.65082175]
[1745327519425,16.65082175,142.05,141.98,16.0]
[1745327519635,16.65082175,142.04,142.0,16.65082175]
[1745327520119,16.65082175,142.03,141.99,16.65082175]
[1745327520325,16.65082175,142.03,141.98,32.65082175]
[1745327520723,16.65082175,142.02,141.98,32.65082175]
[1745327521228,7.06932398,142.06,141.98,32.65082175]
[1745327521229,16.65082175,142.03,141.98,32.65082175]
[1745327522813,16.65082175,142.03,141.98,16.0]
[1745327523019,0.03,142.06,142.02,16.65082175]
[1745327524954,0.03,142.06,142.03,16.0]
[1745327525416,0.03,142.06,142.03,113.88742175]
[1745327526938,0.03,142.06,142.03,97.2366]
[1745327527741,0.03,142.06,142.03,113.88742175]
[1745327528123,0.03,142.06,142.03,97.2366]
[1745327528845,16.65082175,142.04,142.03,16.0]
[1745327529033,16.65082175,142.04,141.99,123.88742175]
[1745327529347,16.65082175,142.02,141.99,97.2366]
[1745327530443,16.65082175,142.03,141.99,97.2366]
[1745327530941,16.65082175,142.02,141.99,97.2366]
[1745327531638,16.65082175,142.01,141.99,97.2366]
[1745327531819,16.65082175,142.01,141.99,16.0]
[1745327532146,16.65082175,142.02,141.99,16.0]
[1745327532442,16.65082175,142.03,141.99,16.0]
[1745327533337,16.65082175,142.02,141.99,16.0]
[1745327534345,7.04036317,142.04,141.99,16.0]
[1745327534524,16.65082175,142.02,141.99,16.0]
[1745327535642,16.65082175,142.01,141.99,16.0]
[1745327536343,7.04036317,142.04,141.99,16.0]
[1745327536535,16.65082175,142.02,141.99,16.0]
[1745327539648,16.65082175,142.01,141.99,16.0]
[1745327540041,16.65082175,142.0,141.99,16.0]
[1745327540429,16.65082175,142.0,141.96,81.2366]
[1745327540634,16.65082175,141.98,141.96,81.2366]
[1745327542130,16.65082175,141.97,141.96,81.2366]
[1745327542652,16.65082175,141.97,141.93,15.6]
[1745327542829,16.65082175,141.96,141.93,15.6]
[1745327543627,16.65082175,141.97,141.93,15.6]
[1745327543827,1.5039,142.05,141.96,16.65082175]
[1745327544058,0.03,142.06,142.02,16.65082175]
[1745327544231,0.03,142.06,142.02,32.25082175]
[1745327544430,0.03,142.06,142.03,16.65082175]
[1745327545153,0.03,142.06,142.04,16.65082175]
[1745327548364,0.03,142.06,142.03,99.25082175]
[1745327548568,0.03,142.06,142.04,16.65082175]
[1745327548764,0.03,142.06,142.03,82.6]
[1745327549064,0.03,142.06,142.03,99.25082175]
[1745327549636,0.03,142.06,142.04,16.65082175]
[1745327549968,0.03,142.06,142.05,16.65082175]
[1745327551665,0.03,142.06,142.05,99.25082175]
[1745327552958,0.03,142.06,142.05,82.6]
[1745327555243,16.68082175,142.06,142.02,15.6]
[1745327555766,0.03,142.06,142.03,16.65082175]
[1745327556152,0.03,142.06,142.05,16.65082175]
[1745327556979,0.03,142.06,142.03,99.25082175]
[1745327557165,0.03,142.06,142.05,16.65082175]
[1745327558466,0.03,142.06,142.03,82.6]
[1745327558467,0.03,142.06,142.04,16.65082175]
[1745327559047,0.03,142.06,142.05,16.65082175]
[1745327559755,0.03,142.06,142.04,16.65082175]
[1745327560975,0.03,142.06,142.05,16.65082175]
[1745327562874,0.03,142.06,142.05,42.65082175]
[1745327563377,0.03,142.06,142.05,125.25082175]
[1745327565483,0.03,142.06,142.05,108.6]
[1745327565655,0.03,142.06,142.05,125.25082175]
[1745327566069,0.03,142.06,142.05,167.64082175]
[1745327566978,0.03,142.06,142.05,98.2]
[1745327567285,0.03,142.06,142.05,114.85082175]
[1745327573382,0.03,142.06,142.05,98.2]
[1745327573570,0.03,142.06,142.05,114.85082175]
[1745327573961,0.03,142.06,142.05,166.4]
[1745327574198,0.03,142.12,142.09,26.0]
[1745327574355,0.03,142.15,142.13,26.0]
[1745327574555,1.5235,142.2,142.14,16.65082175]
[1745327574781,18.17432175,142.2,142.15,31.99082175]
[1745327574964,16.65082175,142.19,142.15,15.34]
[1745327575155,16.65082175,142.18,142.15,15.34]
[1745327575362,16.65082175,142.17,142.15,15.34]
[1745327575599,1.5235,142.2,142.16,16.65082175]
[1745327575797,1.5235,142.2,142.17,16.65082175]
[1745327575971,1.5235,142.2,142.16,16.65082175]
[1745327576464,18.17432175,142.2,142.15,31.99082175]
[1745327577667,1.5235,142.2,142.16,16.65082175]
[1745327577891,18.17432175,142.2,142.15,31.99082175]
[1745327578059,18.17432175,142.2,142.15,15.34]
[1745327578261,18.17432175,142.2,142.15,31.99082175]
[1745327579767,18.17432175,142.2,142.16,16.65082175]
[1745327580796,1.5235,142.2,142.16,16.65082175]
[1745327581173,16.65082175,142.19,142.15,15.34]
[1745327581797,18.17432175,142.2,142.16,16.65082175]
[1745327582164,18.64964886,142.19,142.11,82.6]
[1745327582361,16.65082175,142.16,142.11,82.6]
[1745327582592,16.65082175,142.16,142.12,16.65082175]
[1745327582782,16.65082175,142.16,142.11,99.25082175]
[1745327583181,16.65082175,142.14,142.09,31.97082175]
[1745327583378,6.0511,142.16,142.09,31.97082175]
[1745327583706,16.65082175,142.15,142.1,16.65082175]
[1745327583877,23.68566295,142.15,142.1,16.65082175]
[1745327584281,16.65082175,142.14,142.1,16.65082175]
[1745327584905,23.68566295,142.15,142.1,16.65082175]
[1745327585399,16.65082175,142.13,142.05,83.88727309]
[1745327585607,16.65082175,142.1,142.06,16.65082175]
[1745327586111,16.65082175,142.11,142.06,16.65082175]
[1745327586277,16.65082175,142.11,142.07,16.65082175]
[1745327586477,16.65082175,142.12,142.07,16.65082175]
[1745327586689,23.68724575,142.12,142.07,16.65082175]
[1745327586887,23.68684524,142.13,142.08,16.65082175]
[1745327587090,8.59242665,142.14,142.1,16.65082175]
[1745327587277,1.557,142.14,142.11,16.65082175]
[1745327587478,1.557,142.14,142.1,16.65082175]
[1745327588098,8.59248725,142.14,142.08,26.0]
[1745327588480,8.59248725,142.14,142.1,16.65082175]
[1745327588998,1.557,142.14,142.1,16.65082175]
[1745327589183,1.557,142.14,142.11,16.65082175]
[1745327589589,1.557,142.14,142.1,16.65082175]
[1745327589792,25.24318789,142.14,142.09,16.65082175]
[1745327590192,16.65082175,142.13,142.08,16.65082175]
[1745327590513,16.65082175,142.12,142.08,16.65082175]
[1745327590686,16.65082175,142.13,142.08,16.65082175]
[1745327591792,23.68676932,142.13,142.08,16.65082175]
[1745327591996,1.557,142.14,142.1,16.65082175]
[1745327592192,1.557,142.14,142.11,16.65082175]
[1745327592398,23.68465448,142.17,142.12,16.65082175]
[1745327592792,16.65082175,142.16,142.1,15.32]
[1745327592999,16.65082175,142.16,142.11,16.65082175]
[1745327593602,7.03383273,142.17,142.12,16.65082175]
[1745327593907,23.68465448,142.17,142.12,16.65082175]
[1745327594311,7.03383273,142.17,142.13,16.65082175]
[1745327594804,0.03,142.21,142.16,16.65082175]
[1745327595104,0.03,142.21,142.2,16.65082175]
[1745327596003,0.03,142.21,142.17,41.32]
[1745327596311,0.03,142.21,142.17,123.92]
[1745327596490,0.03,142.21,142.18,16.65082175]
[1745327596699,0.03,142.21,142.19,16.65082175]
[1745327597205,0.03,142.21,142.17,97.92]
[1745327597415,0.03,142.21,142.18,16.65082175]
[1745327597709,0.03,142.21,142.19,16.65082175]
[1745327599817,0.03,142.21,142.17,97.92]
[1745327599991,0.03,142.21,142.2,16.65082175]
[1745327601710,0.03,142.21,142.17,114.57082175]
[1745327601910,0.03,142.21,142.18,16.65082175]
[1745327602124,0.03,142.21,142.19,16.65082175]
[1745327603099,0.03,142.21,142.2,16.65082175]
[1745327606811,0.03,142.21,142.17,97.92]
[1745327606998,0.03,142.21,142.2,16.65082175]
[1745327607502,0.03,142.21,142.17,114.57082175]
[1745327607690,0.03,142.21,142.2,16.65082175]
[1745327608095,0.03,142.21,142.17,97.92]
[1745327608323,0.03,142.21,142.18,16.65082175]
[1745327608505,16.65082175,142.2,142.17,15.32]
[1745327608701,23.71278833,142.21,142.17,15.32]
[1745327610388,0.03,142.21,142.18,16.65082175]
[1745327611101,0.03,142.21,142.17,31.97082175]
[1745327611414,23.71274264,142.21,142.17,15.32]
[1745327611614,16.65082175,142.18,142.1,340.47082175]
[1745327611812,16.65082175,142.16,142.12,16.65082175]
[1745327612012,16.65082175,142.17,142.12,16.65082175]
[1745327612612,16.65082175,142.16,142.11,15.24]
[1745327612810,16.65082175,142.16,142.11,31.89082175]
[1745327613422,16.65082175,142.16,142.12,16.65082175]
[1745327614214,16.65082175,142.16,142.11,15.24]
[1745327614531,16.65082175,142.16,142.12,16.65082175]
[1745327615225,42.65082175,142.18,142.13,16.65082175]
[1745327615611,26.0,142.19,142.16,16.65082175]
[1745327616023,1.651,142.2,142.17,16.65082175]
[1745327616402,1.651,142.2,142.18,16.65082175]
[1745327616827,1.651,142.2,142.17,16.65082175]
[1745327617021,1.651,142.2,142.11,104.87659991]
[1745327617324,1.651,142.2,142.17,16.65082175]
[1745327618698,0.03,142.21,142.18,16.65082175]
[1745327619921,0.03,142.21,142.19,16.65082175]
[1745327620116,0.03,142.21,142.2,16.65082175]
[1745327621010,0.03,142.21,142.16,104.87408817]
[1745327621329,0.03,142.21,142.16,97.84]
[1745327621509,0.03,142.21,142.19,16.65082175]
[1745327621832,0.03,142.21,142.2,16.65082175]
[1745327623814,6.44329233,142.23,142.2,27.27601251]
[1745327624118,6.44329233,142.23,142.22,16.65082175]
[1745327624328,0.03,142.26,142.25,16.65082175]
[1745327627539,0.03,142.26,142.24,15.24]
[1745327628132,0.03,142.26,142.25,16.65082175]
[1745327628335,0.03,142.26,142.24,31.89082175]
[1745327628548,0.03,142.26,142.23,16.65082175]
[1745327630155,0.03,142.26,142.24,16.65082175]
[1745327630726,0.03,142.26,142.25,16.65082175]
[1745327633847,0.03,142.26,142.21,16.65082175]
[1745327633848,16.68082175,142.26,142.21,16.65082175]
[1745327634058,0.03,142.26,142.23,16.65082175]
[1745327634359,0.03,142.26,142.25,16.65082175]
[1745327638055,0.03,142.32,142.25,105.80282175]
[1745327638259,0.03,142.32,142.3,16.65082175]
[1745327638428,0.03,142.32,142.3,31.71082175]
[1745327638628,0.03,142.32,142.3,15.06]
[1745327638843,0.03,142.32,142.3,31.71082175]
[1745327639437,0.03,142.32,142.31,16.65082175]
[1745327641948,0.03,142.35,142.31,115.9016435]
[1745327642150,0.03,142.35,142.34,16.65082175]
[1745327642642,0.03,142.35,142.31,99.25082175]
[1745327642643,0.03,142.35,142.31,82.6]
[1745327642837,0.03,142.35,142.32,16.65082175]
[1745327643039,0.03,142.35,142.34,16.65082175]
[1745327643360,1.1485,142.38,142.34,16.65082175]
[1745327643528,1.1485,142.38,142.31,82.6]
[1745327643529,17.79932175,142.38,142.31,82.6]
[1745327643734,1.1485,142.38,142.33,16.65082175]
[1745327644042,16.65082175,142.37,142.33,16.65082175]
[1745327644354,16.65082175,142.37,142.32,31.69082175]
[1745327647159,17.82932175,142.38,142.33,16.65082175]
[1745327647361,24.85290155,142.38,142.33,16.65082175]
[1745327647853,24.85290155,142.38,142.27,82.6]
[1745327648055,16.65082175,142.32,142.28,15.04]
[1745327648965,16.65082175,142.33,142.28,31.69082175]
[1745327649342,16.65082175,142.32,142.28,31.69082175]
[1745327649538,16.65082175,142.3,142.26,16.65082175]
[1745327650143,16.65082175,142.3,142.25,31.69082175]
[1745327650346,16.65082175,142.29,142.25,15.04]
[1745327650555,16.65082175,142.28,142.25,15.04]
[1745327650765,16.65082175,142.27,142.25,15.04]
[1745327650941,16.65082175,142.29,142.25,31.69082175]
[1745327651141,49.67833042,142.3,142.25,15.04]
[1745327651340,1.6185,142.31,142.28,16.65082175]
[1745327651570,7.0255986,142.34,142.3,16.65082175]
[1745327651860,49.67642035,142.34,142.29,16.65082175]
[1745327652238,16.65082175,142.33,142.28,16.65082175]
[1745327652441,33.0255986,142.34,142.28,16.65082175]
[1745327652639,16.65082175,142.33,142.28,16.65082175]
[1745327652873,49.67642035,142.34,142.29,16.65082175]
[1745327653242,16.65082175,142.33,142.28,16.65082175]
[1745327655268,23.67703957,142.33,142.29,16.65082175]
[1745327655468,26.0,142.34,142.3,16.65082175]
[1745327655677,1.5014,142.35,142.31,16.65082175]
[1745327656347,49.67539029,142.36,142.31,16.65082175]
[1745327656541,23.67539029,142.36,142.31,16.65082175]
[1745327656754,49.67539029,142.36,142.31,16.65082175]
[1745327657149,42.65082175,142.36,142.32,16.65082175]
[1745327657867,26.0,142.36,142.32,16.65082175]
[1745327658164,7.05366681,142.38,142.33,16.65082175]
[1745327658363,16.65082175,142.37,142.33,16.65082175]
[1745327659066,26.03,142.38,142.34,16.65082175]
[1745327659244,7.05348977,142.38,142.35,15.04]
[1745327659448,0.03,142.38,142.35,15.04]
[1745327660674,0.03,142.38,142.35,31.69082175]
[1745327661204,0.03,142.38,142.35,15.04]
[1745327662387,0.03,142.38,142.37,16.65082175]
[1745327662987,0.03,142.38,142.36,16.65082175]
[1745327663969,0.03,142.38,142.35,114.29082175]
[1745327665705,0.03,142.38,142.33,15.18]
[1745327665706,16.65082175,142.37,142.33,15.18]
[1745327666034,16.65082175,142.37,142.33,31.83082175]
[1745327666297,16.68082175,142.38,142.33,31.83082175]
[1745327666896,16.68082175,142.38,142.34,16.65082175]
[1745327667413,16.68082175,142.38,142.33,15.18]
[1745327667576,16.68082175,142.38,142.33,31.83082175]
[1745327667772,23.70449733,142.38,142.33,31.83082175]
[1745327668206,0.03,142.38,142.35,16.65082175]
[1745327668577,0.03,142.38,142.34,16.65082175]
[1745327669095,0.03,142.38,142.35,16.65082175]
[1745327669411,7.05349683,142.38,142.34,16.65082175]
[1745327669611,0.03,142.38,142.35,16.65082175]
[1745327670715,0.03,142.38,142.34,16.65082175]
[1745327671695,16.68082175,142.38,142.33,31.83082175]
[1745327672514,16.65082175,142.37,142.33,15.18]
[1745327673208,16.65082175,142.36,142.31,97.78]
[1745327673385,16.65082175,142.36,142.31,31.83082175]
[1745327673807,7.02493853,142.35,142.31,31.83082175]
[1745327674114,7.02493853,142.35,142.31,15.18]
[1745327674285,23.67576028,142.35,142.31,15.18]
[1745327674486,7.02493853,142.35,142.31,31.83082175]
[1745327674792,7.02465497,142.36,142.33,16.65082175]
[1745327674992,25.2230811,142.37,142.33,16.65082175]
[1745327675198,16.65082175,142.36,142.31,15.18]
[1745327675702,16.65082175,142.36,142.31,31.83082175]
[1745327676126,7.02493853,142.35,142.31,31.83082175]
[1745327676298,23.67576028,142.35,142.31,15.18]
[1745327676504,7.02493853,142.35,142.31,31.83082175]
[1745327677511,23.67576028,142.35,142.31,15.18]
[1745327677913,16.65082175,142.33,142.31,15.18]
[1745327678215,16.65082175,142.33,142.28,16.65082175]
[1745327678399,7.02641933,142.32,142.29,16.65082175]
[1745327679330,7.02641933,142.32,142.28,16.65082175]
[1745327680328,7.02641933,142.32,142.29,16.65082175]
[1745327681226,7.02641933,142.32,142.28,16.65082175]
[1745327681430,7.02641933,142.32,142.29,16.65082175]
[1745327681805,23.67724108,142.32,142.27,15.18]
[1745327682121,23.67724108,142.32,142.27,31.83082175]
[1745327682321,16.65082175,142.31,142.27,15.18]
[1745327682525,7.02740688,142.3,142.27,15.18]
[1745327682909,23.67822863,142.3,142.27,15.18]
[1745327683230,23.67822863,142.3,142.25,99.31382175]
[1745327684832,23.67822863,142.3,142.26,16.65082175]
[1745327685035,18.64964886,142.29,142.25,0.063]
[1745327685327,16.65082175,142.28,142.25,0.063]
[1745327685631,16.65082175,142.27,142.25,0.063]
[1745327686430,7.02740688,142.3,142.25,0.063]
[1745327686618,8.57519656,142.31,142.28,16.65082175]
[1745327687129,25.22601831,142.31,142.25,0.063]
[1745327687432,8.57519656,142.31,142.27,16.65082175]
[1745327687605,8.57519656,142.31,142.25,0.063]
[1745327687802,8.57519656,142.31,142.27,16.65082175]
[1745327688206,8.57519656,142.31,142.25,0.063]
[1745327688515,8.57519656,142.31,142.27,16.65082175]
[1745327688723,8.57519656,142.31,142.25,0.063]
[1745327689025,8.57519656,142.31,142.27,16.65082175]
[1745327689532,8.57419786,142.33,142.28,16.65082175]
[1745327689732,16.65082175,142.32,142.28,16.65082175]
[1745327689915,25.22501961,142.33,142.28,16.65082175]
[1745327690237,18.19892175,142.33,142.29,16.65082175]
[1745327690528,1.5481,142.33,142.25,82.663]
[1745327690830,143.23968768,142.38,142.32,16.65082175]
[1745327690831,0.03,142.38,142.32,16.65082175]
[1745327691033,0.03,142.38,142.33,15.18]
[1745327691238,0.03,142.38,142.36,16.65082175]
[1745327691534,0.03,142.38,142.37,16.65082175]
[1745327691919,0.03,142.38,142.37,22.89882175]
[1745327692241,0.03,142.38,142.37,6.248]
[1745327692415,0.03,142.38,142.37,22.89882175]
[1745327693643,0.03,142.38,142.37,6.248]
[1745327693825,0.03,142.38,142.37,22.89882175]
[1745327696060,0.03,142.38,142.37,48.89882175]
[1745327696617,0.03,142.38,142.37,32.248]
[1745327696942,0.03,142.38,142.37,48.89882175]
[1745327697343,0.03,142.38,142.37,131.49882175]
[1745327697547,0.03,142.38,142.37,48.89882175]
[1745327698154,0.03,142.38,142.37,65.5496435]
[1745327698367,0.03,142.38,142.37,48.89882175]
[1745327698741,0.03,142.38,142.37,32.248]
[1745327698942,0.03,142.38,142.37,48.89882175]
[1745327699562,0.03,142.38,142.37,65.5496435]
[1745327699764,0.03,142.38,142.37,48.89882175]
[1745327700336,0.03,142.38,142.37,26.0]
[1745327700565,0.03,142.38,142.33,262.4418]
[1745327700758,0.03,142.38,142.35,16.65082175]
[1745327700942,0.03,142.38,142.33,256.02]
[1745327701270,0.03,142.38,142.35,16.65082175]
[1745327701471,16.68082175,142.38,142.25,13.51461783]
[1745327701638,16.65082175,142.36,142.31,16.65082175]
[1745327701843,16.65082175,142.36,142.32,16.65082175]
[1745327702172,16.65082175,142.36,142.27,15.2]
[1745327702373,16.65082175,142.35,142.3,16.65082175]
[1745327702668,23.67751233,142.32,142.27,15.2]
[1745327702839,16.65082175,142.31,142.27,16.65082175]
[1745327703043,6.2153,142.34,142.25,82.663]
[1745327703044,13.24105393,142.34,142.25,82.663]
[1745327703241,7.02395167,142.37,142.33,16.65082175]
[1745327703442,6.2453,142.38,142.34,16.65082175]
[1745327703642,16.65082175,142.37,142.32,16.65082175]
[1745327704044,16.65082175,142.36,142.29,41.2]
[1745327704246,16.65082175,142.36,142.31,16.65082175]
[1745327704459,13.26890475,142.38,142.29,41.2]
[1745327704637,16.65082175,142.36,142.29,41.2]
[1745327704859,23.67554969,142.36,142.31,16.65082175]
[1745327705065,7.02472794,142.36,142.32,16.65082175]
[1745327705263,7.02472794,142.36,142.29,41.2]
[1745327705659,7.02472794,142.36,142.32,16.65082175]
[1745327705859,7.02411627,142.37,142.32,16.65082175]
[1745327706067,7.02411627,142.37,142.33,16.65082175]
[1745327706663,0.03,142.38,142.34,16.65082175]
[1745327706974,0.03,142.38,142.29,41.2]
[1745327706975,16.68082175,142.38,142.33,16.65082175]
[1745327707368,16.65082175,142.37,142.29,15.2]
[1745327707669,0.03,142.38,142.33,16.65082175]
[1745327707987,0.03,142.38,142.35,16.65082175]
[1745327709262,0.03,142.38,142.36,16.65082175]
[1745327709573,0.03,142.38,142.37,16.65082175]
[1745327710370,0.03,142.38,142.34,15.2]
[1745327710589,0.03,142.38,142.36,16.65082175]
[1745327710779,0.03,142.38,142.37,16.65082175]
[1745327716786,0.03,142.38,142.37,115.9016435]
[1745327718057,0.03,142.38,142.37,99.25082175]
[1745327719684,0.03,142.38,142.37,115.9016435]
[1745327720290,0.03,142.38,142.37,99.25082175]
[1745327720962,0.03,142.38,142.37,115.9016435]
[1745327723277,1.1476327,142.42,142.37,115.9016435]
[1745327723473,1.1476327,142.42,142.38,16.65082175]
[1745327723687,1.1476327,142.42,142.39,15.46]
[1745327723869,1.1476327,142.42,142.41,16.65082175]
[1745327724265,1.5574,142.58,142.43,190.54964886]
[1745327724495,1.5574,142.58,142.52,16.65082175]
[1745327724661,7.01437697,142.57,142.52,16.65082175]
[1745327724863,7.01409833,142.57,142.52,16.65082175]
[1745327725789,23.66492008,142.57,142.52,16.65082175]
[1745327725970,7.01409833,142.57,142.52,16.65082175]
[1745327727596,23.66492008,142.57,142.52,16.65082175]
[1745327727963,16.65082175,142.55,142.51,15.46]
[1745327728364,16.65082175,142.54,142.51,15.46]
[1745327728604,16.65082175,142.55,142.51,15.46]
[1745327728761,16.65082175,142.52,142.47,15.46]
[1745327728964,28.5574,142.58,142.44,242.04374854]
[1745327728965,16.65082175,142.49,142.45,16.65082175]
[1745327729189,16.65082175,142.49,142.44,242.04374854]
[1745327729381,16.65082175,142.48,142.44,16.65082175]
[1745327729585,16.65082175,142.48,142.43,15.46]
[1745327729780,16.65082175,142.47,142.43,16.65082175]
[1745327729960,16.65082175,142.48,142.43,16.65082175]
[1745327730164,16.65082175,142.49,142.44,16.65082175]